lending/lending_fUSD_20241103
["ID","MTS","AMOUNT","RATE_DAILY","PERIOD"]
[341205529,1730646647823,-2696.0,0.00016552,3]
[341205530,1730646647837,-2696.0,0.00016552,3]
[341205531,1730646647851,-382.0,0.00016553,3]
[341205532,1730646647865,-178.37,0.00016575,2]
[341205533,1730646647881,-386.13,0.00016575,2]
[341205534,1730646647895,-3622.66,0.00016575,2]
[341205535,1730646647910,-156.01,0.00016712,2]
[341205536,1730646647926,-427.0,0.000171,2]
[341205537,1730646647941,-2381.0,0.000171,2]
[341205538,1730646647954,-576.41,0.0001725,2]
[341205539,1730646647968,-1000.0,0.00017342,2]
[341205540,1730646647983,-420.0,0.00017492,2]
[341205541,1730646647997,-271.446,0.00017814,2]
[341205542,1730646648012,-574.896,0.00017814,2]
[341205543,1730646648028,-451.0,0.00017814,2]
[341205544,1730646648045,-711.867,0.00017814,2]
[341205545,1730646648060,-639.176,0.00017814,2]
[341205546,1730646648077,-1793.0,0.00017814,2]
[341205547,1730646648092,-2905.0,0.00017814,2]
[341205548,1730646648109,-1256.0,0.00017814,2]
[341205549,1730646648124,-812.0,0.00017814,2]
[341205550,1730646648245,-808.0,0.00017814,2]
[341205551,1730646648255,-328.10939913,0.00018,2]
[341205552,1730646648269,-250.216,0.00018,2]
[341205553,1730646648279,-178.37,0.00018233,2]
[341205554,1730646648289,-150.0,0.00018238,5]
[341205555,1730646648300,-238.1266215,0.00018262,5]
[341205556,1730646648309,-150.0,0.00018285,5]
[341205557,1730646648319,-1141.37,0.00018356,2]
[341205558,1730646648335,-302.32640067,0.0001858,2]
[341205559,1730646648346,-185.73,0.00018604,2]
[341205560,1730646648362,-153.721,0.0001865,5]
[341205561,1730646648372,-152.808,0.0001895,2]
[341205562,1730646648382,-150.0,0.0001895,2]
[341205563,1730646648391,-2931.52757029,0.00019009,2]
[341205564,1730646648401,-1000.0,0.00019115,2]
[341205565,1730646648411,-587.0,0.00019125,2]
[341205566,1730646648421,-157.24,0.00019293,2]
[341205567,1730646648430,-477.61,0.00019378,2]
[341205568,1730646648440,-23900.0,0.00019398,2]
[341205569,1730646648449,-163.06,0.0001949,2]
[341205570,1730646648458,-576.41,0.00019513,2]
[341205571,1730646648468,-856.41,0.00019726,2]
[341205572,1730646648478,-151.505,0.00019766,2]
[341205573,1730646648488,-1500.0,0.00019847,2]
[341205574,1730646648497,-942.38269314,0.000199,2]
[341205575,1730646648507,-856.41,0.00019974,2]
[341205576,1730646648517,-8000.0,0.0002,2]
[341205577,1730646648528,-856.41,0.00020222,2]
[341205578,1730646648538,-477.61,0.00020346,2]
[341205579,1730646648547,-856.41,0.0002047,2]
[341205580,1730646648557,-153.245,0.0002068,2]
[341205581,1730646648566,-856.41,0.00020718,2]
[341205582,1730646648575,-150.0,0.00020814,2]
[341205583,1730646648585,-242.493,0.00020814,2]
[341205584,1730646648594,-2905.0,0.00020814,2]
[341205585,1730646648604,-812.0,0.00020814,2]
[341205586,1730646648614,-808.0,0.00020814,2]
[341205587,1730646648623,-170.85,0.00020938,2]
[341205588,1730646648633,-856.41,0.00020966,2]
[341205589,1730646648642,-1055.61245614,0.00021,7]
[341205590,1730646648653,-250.0,0.00021,2]
[341205591,1730646648663,-856.41,0.00021214,2]
[341205592,1730646648672,-477.61,0.00021315,2]
[341205593,1730646648681,-856.41,0.00021462,2]
[341205594,1730646648691,-1000.0,0.00021504,2]
[341205595,1730646648701,-185.73,0.00021542,2]
[341205596,1730646648710,-576.41,0.00021777,2]
[341205597,1730646648720,-202.47,0.00021918,2]
[341205598,1730646648729,-176.83,0.00021918,2]
[341205599,1730646648738,-157.4,0.00021918,2]
[341205600,1730646648748,-150.0,0.0002195,2]
[341205601,1730646648757,-544.1,0.00022097,2]
[341205602,1730646648767,-2931.52757029,0.00022118,2]
[341205603,1730646648776,-477.61,0.00022284,2]
[341205604,1730646648786,-300.0,0.00023,2]
[341205605,1730646648795,-845.62800883,0.00023091,2]
[341205606,1730646648804,-477.61,0.00023253,2]
[341205607,1730646648814,-500.0,0.00023492,2]
[341205608,1730646648829,-188.83284507,0.00023492,2]
[341205609,1730646648841,-150.0,0.00023492,2]
[341205610,1730646648850,-222.58769707,0.00023492,2]
[341205611,1730646648859,-177.38,0.00023732,2]
[341205612,1730646648868,-156.62,0.00023732,2]
[341205613,1730646648878,-160.61,0.00023732,2]
[341205614,1730646648887,-1896.363,0.00023814,2]
[341205615,1730646648897,-812.0,0.00023814,2]
[341205616,1730646648907,-748.069,0.00023814,2]
[341205617,1730646648916,-1000.0,0.00023894,2]
[341205618,1730646648927,-2077.330056,0.00024,2]
[341205619,1730646648937,-147940.79668378,0.00024,2]
[341205620,1730646648946,-500.0,0.0002404,2]
[341205621,1730646648955,-150.0,0.0002404,2]
[341205622,1730646648965,-576.41,0.00024041,2]
[341205623,1730646648974,-500.0,0.00024588,2]
[341205624,1730646648983,-150.0,0.00024588,2]
[341205625,1730646648993,-72817.48135153,0.0002463,2]
[341205626,1730646649003,-5504.23,0.00024658,2]
[341205627,1730646649012,-160.61,0.00024712,2]
[341205628,1730646649022,-10037.78110745,0.00024728,2]
[341205629,1730646649031,-67370.13812149,0.000248,2]
[341205630,1730646649042,-398.0,0.000248,8]
[341205631,1730646649053,-196.0,0.000248,8]
[341205632,1730646649063,-1070.24,0.000249,2]
[341205633,1730646649078,-150.0,0.0002495,2]
[341205634,1730646649088,-501.16664927,0.00024973,2]
[341205635,1730646649097,-500.0,0.0002499,7]
[341205636,1730646649107,-500.0,0.0002499,7]
[341205637,1730646649116,-500.0,0.0002499,7]
[341205638,1730646649126,-500.0,0.0002499,7]
[341205639,1730646649135,-500.0,0.0002499,7]
[341205640,1730646649144,-500.0,0.0002499,7]
[341205641,1730646649155,-500.0,0.0002499,7]
[341205642,1730646649164,-500.0,0.0002499,7]
[341205643,1730646649174,-500.0,0.0002499,7]
[341205644,1730646649183,-500.0,0.0002499,7]
[341205645,1730646649193,-500.0,0.0002499,7]
[341205646,1730646649202,-500.0,0.0002499,7]
[341205647,1730646649212,-500.0,0.0002499,7]
[341205648,1730646649221,-500.0,0.0002499,7]
[341205649,1730646649230,-500.0,0.0002499,7]
[341205650,1730646649239,-500.0,0.0002499,7]
[341205651,1730646649248,-500.0,0.0002499,7]
[341205652,1730646649258,-500.0,0.0002499,7]
[341205653,1730646649267,-500.0,0.0002499,7]
[341205654,1730646649281,-500.0,0.0002499,7]
[341205655,1730646649290,-500.0,0.0002499,7]
[341205656,1730646649300,-500.0,0.0002499,7]
[341205657,1730646649309,-500.0,0.0002499,7]
[341205658,1730646649319,-500.0,0.0002499,7]
[341205659,1730646649336,-500.0,0.0002499,7]
[341205660,1730646649346,-500.0,0.0002499,7]
[341205661,1730646649355,-500.0,0.0002499,7]
[341205662,1730646649364,-500.0,0.0002499,7]
[341205663,1730646649374,-500.0,0.0002499,7]
[341205664,1730646649383,-500.0,0.0002499,7]
[341205665,1730646649460,-500.0,0.0002499,7]
[341205666,1730646649471,-500.0,0.0002499,7]
[341205667,1730646649480,-500.0,0.0002499,7]
[341205668,1730646649490,-500.0,0.0002499,7]
[341205669,1730646649500,-500.0,0.0002499,7]
[341205670,1730646649509,-500.0,0.0002499,7]
[341205671,1730646649519,-500.0,0.0002499,7]
[341205672,1730646649529,-500.0,0.0002499,7]
[341205673,1730646649539,-500.0,0.0002499,7]
[341205674,1730646649549,-500.0,0.0002499,7]
[341205675,1730646649558,-500.0,0.0002499,7]
[341205676,1730646649568,-500.0,0.0002499,7]
[341205677,1730646649585,-500.0,0.0002499,7]
[341205678,1730646649596,-500.0,0.0002499,7]
[341205679,1730646649606,-500.0,0.0002499,7]
[341205680,1730646649615,-151.79,0.0002499,7]
[341205681,1730646649625,-500.0,0.0002499,7]
[341205682,1730646649635,-1000.0,0.00025,4]
[341205683,1730646649645,-70077.64289525,0.00025,5]
[341205684,1730646649655,-350.0,0.00025,2]
[341205685,1730646649664,-865.00054191,0.00025136,2]
[341205686,1730646649674,-150.0,0.00025136,2]
[341205687,1730646649684,-161.90638131,0.00025153,2]
[341205688,1730646649694,-500.0,0.00025153,2]
[341205689,1730646649704,-2931.52757029,0.00025227,2]
[341205690,1730646649714,-26178.79045985,0.000253,5]
[341205691,1730646649723,-203.0,0.000253,10]
[341205692,1730646649732,-500.0,0.00025406,2]
[341205693,1730646649742,-431.60059347,0.00025406,2]
[341205694,1730646649751,-430.82,0.00025479,2]
[341205695,1730646649761,-150.0,0.00025684,2]
[341205696,1730646649771,-177.38,0.00025691,2]
[341205697,1730646649781,-156.62,0.00025691,2]
[341205698,1730646649790,-160.61,0.00025691,2]
[341205699,1730646649800,-150.0,0.00025693,2]
[341205700,1730646649809,-150.0,0.00025697,2]
[341205701,1730646649819,-150.0,0.00025699,2]
[341205702,1730646649832,-150.0,0.00025711,2]
[341205703,1730646649841,-150.0,0.00025716,2]
[341205704,1730646649851,-150.0,0.00025718,2]
[341205705,1730646649859,-150.0,0.00025719,2]
[341205706,1730646649869,-150.0,0.00025725,2]
[341205707,1730646649879,-150.0,0.00025727,2]
[341205708,1730646649888,-150.0,0.00025727,2]
[341205709,1730646649897,-150.0,0.00025728,2]
[341205710,1730646649907,-150.0,0.00025729,2]
[341205711,1730646649916,-150.0,0.00025737,2]
[341205712,1730646649925,-150.0,0.00025739,2]
[341205713,1730646649935,-150.0,0.00025739,2]
[341205714,1730646649945,-150.0,0.00025745,2]
[341205715,1730646649954,-150.0,0.00025746,2]
[341205716,1730646649963,-150.0,0.00025754,2]
[341205717,1730646649972,-150.0,0.00025754,2]
[341205718,1730646649981,-150.0,0.00025757,2]
[341205719,1730646649990,-150.0,0.00025759,2]
[341205720,1730646650000,-150.0,0.00025761,2]
[341205721,1730646650009,-150.0,0.00025763,2]
[341205722,1730646650019,-150.0,0.00025766,2]
[341205723,1730646650028,-150.0,0.00025767,2]
[341205724,1730646650037,-150.0,0.00025768,2]
[341205725,1730646650046,-150.0,0.00025769,2]
[341205726,1730646650056,-150.0,0.00025771,2]
[341205727,1730646650066,-150.0,0.00025772,2]
[341205728,1730646650078,-150.0,0.00025772,2]
[341205729,1730646650087,-150.0,0.00025776,2]
[341205730,1730646650097,-150.0,0.00025778,2]
[341205731,1730646650106,-150.0,0.00025781,2]
[341205732,1730646650115,-150.0,0.00025781,2]
[341205733,1730646650125,-150.0,0.00025783,2]
[341205734,1730646650134,-150.0,0.00025789,2]
[341205735,1730646650143,-150.0,0.0002579,2]
[341205736,1730646650152,-150.0,0.00025791,2]
[341205737,1730646650162,-150.0,0.00025793,2]
[341205738,1730646650171,-150.0,0.00025794,2]
[341205739,1730646650180,-150.0,0.00025806,2]
[341205740,1730646650190,-150.0,0.00025812,2]
[341205741,1730646650199,-150.0,0.00025815,2]
[341205742,1730646650209,-150.0,0.00025816,2]
[341205743,1730646650218,-150.0,0.00025817,2]
[341205744,1730646650227,-150.0,0.00025821,2]
[341205745,1730646650237,-150.0,0.00025827,2]
[341205746,1730646650246,-150.0,0.00025828,2]
[341205747,1730646650256,-150.0,0.00025828,2]
[341205748,1730646650266,-150.0,0.00025828,2]
[341205749,1730646650277,-150.0,0.00025829,2]
[341205750,1730646650287,-150.0,0.00025837,2]
[341205751,1730646650296,-150.0,0.00025838,2]
[341205752,1730646650305,-150.0,0.0002584,2]
[341205753,1730646650314,-150.0,0.00025847,2]
[341205754,1730646650326,-150.0,0.00025847,2]
[341205755,1730646650336,-150.0,0.00025847,2]
[341205756,1730646650345,-150.0,0.00025857,2]
[341205757,1730646650355,-150.0,0.00025858,2]
[341205758,1730646650365,-150.0,0.00025859,2]
[341205759,1730646650375,-150.0,0.00025868,2]
[341205760,1730646650385,-150.0,0.00025869,2]
[341205761,1730646650394,-150.0,0.0002587,2]
[341205762,1730646650404,-150.0,0.0002587,2]
[341205763,1730646650413,-150.0,0.00025873,2]
[341205764,1730646650424,-150.0,0.00025877,2]
[341205765,1730646650434,-150.0,0.00025878,2]
[341205766,1730646650444,-150.0,0.00025881,2]
[341205767,1730646650453,-150.0,0.0002589,2]
[341205768,1730646650464,-150.0,0.00025893,2]
[341205769,1730646650474,-150.0,0.00025896,2]
[341205770,1730646650484,-150.0,0.00025896,2]
[341205771,1730646650494,-150.0,0.00025907,2]
[341205772,1730646650503,-150.0,0.00025908,2]
[341205773,1730646650577,-150.0,0.00025908,2]
[341205774,1730646650587,-150.0,0.0002591,2]
[341205775,1730646650596,-150.0,0.00025912,2]
[341205776,1730646650606,-150.0,0.00025912,2]
[341205777,1730646650616,-150.0,0.00025913,2]
[341205778,1730646650626,-150.0,0.00025913,2]
[341205779,1730646650635,-150.0,0.00025918,2]
[341205780,1730646650645,-150.0,0.00025923,2]
[341205781,1730646650655,-150.0,0.00025926,2]
[341205782,1730646650666,-150.0,0.0002593,2]
[341205783,1730646650675,-150.0,0.00025933,2]
[341205784,1730646650685,-150.0,0.00025934,2]
[341205785,1730646650694,-150.0,0.00025934,2]
[341205786,1730646650704,-150.0,0.00025936,2]
[341205787,1730646650714,-150.0,0.00025937,2]
[341205788,1730646650723,-150.0,0.00025938,2]
[341205789,1730646650733,-150.0,0.0002594,2]
[341205790,1730646650743,-150.0,0.0002594,2]
[341205791,1730646650752,-150.0,0.00025947,2]
[341205792,1730646650762,-150.0,0.00025951,2]
[341205793,1730646650771,-150.0,0.00025955,2]
[341205794,1730646650781,-150.0,0.00025958,2]
[341205795,1730646650790,-150.0,0.00025958,2]
[341205796,1730646650799,-150.0,0.00025961,2]
[341205797,1730646650809,-150.0,0.00025963,2]
[341205798,1730646650818,-150.0,0.00025965,2]
[341205799,1730646650830,-150.0,0.00025969,2]
[341205800,1730646650839,-210.21680263,0.00025973,2]
[341205801,1730646650848,-500.0,0.00025973,2]
[341205802,1730646650858,-500.0,0.00025973,2]
[341205803,1730646650867,-505.23316575,0.00025973,2]
[341205804,1730646650877,-150.0,0.00025983,2]
[341205805,1730646650887,-700.0,0.00025999,9]
[341205806,1730646650896,-700.0,0.00025999,9]
[341205807,1730646650905,-700.0,0.00025999,9]
[341205808,1730646650915,-700.0,0.00025999,9]
[341205809,1730646650924,-700.0,0.00025999,9]
[341205810,1730646650933,-700.0,0.00025999,9]
[341205811,1730646650942,-700.0,0.00025999,9]
[341205812,1730646650952,-700.0,0.00025999,9]
[341205813,1730646650961,-700.0,0.00025999,9]
[341205814,1730646650970,-700.0,0.00025999,9]
[341205815,1730646650979,-796.0,0.00026,9]
[341205816,1730646650989,-9549.85904161,0.00026,2]
[341205817,1730646650998,-101900.0,0.00026,30]
[341205818,1730646651008,-250.0,0.00026232,2]
[341205819,1730646651017,-1000.0,0.00026283,2]
[341205820,1730646651026,-576.41,0.00026305,2]
[341205821,1730646651035,-1000.0,0.00026523,2]
[341205822,1730646651044,-160.61,0.0002667,2]
[341205823,1730646651054,-503.23086788,0.00026775,2]
[341205824,1730646651063,-410.453,0.00026814,2]
[341205825,1730646651072,-400.0,0.00027,2]
[341205826,1730646651082,-1000.0,0.00027342,2]
[341205827,1730646651091,-3010.0,0.00027397,2]
[341205828,1730646651100,-150.0,0.00027397,7]
[341205829,1730646651109,-714.39,0.00027397,10]
[341205830,1730646651119,-156.42,0.00027507,2]
[341205831,1730646651129,-177.38,0.00027649,2]
[341205832,1730646651138,-156.62,0.00027649,2]
[341205833,1730646651147,-160.61,0.00027649,2]
[341205834,1730646651156,-153.277,0.000278,120]
[341205835,1730646651165,-500.0,0.00028112,120]
[341205836,1730646651174,-2931.52757029,0.00028336,2]
[341205837,1730646651184,-576.41,0.00028569,2]
[341205838,1730646651193,-1000.0,0.00028672,2]
[341205839,1730646651202,-152.97,0.00028858,2]
[341205840,1730646651212,-157.24,0.0002894,2]
[341205841,1730646651221,-5044.85382589,0.00029,2]
[341205842,1730646651230,-6714.06789888,0.00029,2]
[341205843,1730646651239,-450.0,0.00029,2]
[341205844,1730646651248,-501.28049823,0.00029028,5]
[341205845,1730646651260,-163.06,0.00029236,2]
[341205846,1730646651270,-3210.74,0.000296,7]
[341205847,1730646651279,-429.68316952,0.00029661,7]
[341205848,1730646651289,-1500.0,0.00029847,5]
[341205849,1730646651299,-6001.46355,0.000299,2]
[341205850,1730646651308,-5864.0,0.00029965,2]
[341205851,1730646651318,-352.09984173,0.0003,2]
[341205852,1730646651330,-1000.0,0.0003,4]
[341205853,1730646651341,-151.0,0.0003,120]
[341205854,1730646651351,-782.08,0.0003,2]
[341205855,1730646651360,-782.08,0.0003,2]
[341205856,1730646651370,-551.63925,0.0003,2]
[341205857,1730646651379,-551.63925,0.0003,2]
[341205858,1730646651388,-150.05475,0.0003,2]
[341205859,1730646651397,-441.57952891,0.0003,2]
[341205860,1730646651406,-839.0,0.0003,18]
[341205861,1730646651415,-1009.86,0.0003,2]
[341205862,1730646651424,-150.0,0.0003,11]
[341205863,1730646651433,-218.0,0.0003,2]
[341205864,1730646651443,-9133.99853364,0.0003,2]
[341205865,1730646651452,-157.809,0.0003,2]
[341205866,1730646651461,-157.809,0.0003,2]
[341205867,1730646651471,-157.809,0.0003,2]
[341205868,1730646651480,-157.809,0.0003,2]
[341205869,1730646651489,-157.809,0.0003,2]
[341205870,1730646651499,-157.809,0.0003,2]
[341205871,1730646651507,-157.809,0.0003,2]
[341205872,1730646651583,-157.809,0.0003,2]
[341205873,1730646651598,-157.809,0.0003,2]
[341205874,1730646651608,-152.0,0.00030116,3]
[341205875,1730646651618,-500.0,0.00030212,120]
[341205876,1730646651628,-533.32298395,0.00030253,7]
[341205877,1730646651637,-500.0,0.00030253,7]
[341205878,1730646651647,-839.0,0.000305,19]
[341205879,1730646651656,-8138.0,0.000307,5]
[341205880,1730646651666,-576.41,0.00030833,2]
[341205881,1730646651675,-500.0,0.00031,2]
[341205882,1730646651685,-839.0,0.00031,19]
[341205883,1730646651695,-744.142746,0.0003143,4]
[341205884,1730646651704,-2931.52757029,0.00031444,15]
[341205885,1730646651714,-839.0,0.000315,20]
[341205886,1730646651724,-152.0,0.00031537,4]
[341205887,1730646651734,-500.0,0.0003155,5]
[341205888,1730646651743,-1009.86,0.0003178,2]
[341205889,1730646651753,-500.0,0.00031897,7]
[341205890,1730646651762,-839.0,0.00032,20]
[341205891,1730646651772,-153.217,0.0003223,2]
[341205892,1730646651781,-500.0,0.000323,10]
[341205893,1730646651790,-500.0,0.000323,10]
[341205894,1730646651799,-500.0,0.000323,10]
[341205895,1730646651809,-500.0,0.000323,10]
[341205896,1730646651818,-500.0,0.000323,10]
[341205897,1730646651830,-500.0,0.000323,10]
[341205898,1730646651840,-500.0,0.000323,10]
[341205899,1730646651849,-500.0,0.000323,10]
[341205900,1730646651859,-500.0,0.000323,10]
[341205901,1730646651868,-500.0,0.000323,10]
[341205902,1730646651880,-500.0,0.000323,10]
[341205903,1730646651889,-546.15733948,0.000323,10]
[341205904,1730646651899,-298.930695,0.00032418,120]
[341205905,1730646651908,-153.287,0.0003243,120]
[341205906,1730646651917,-839.0,0.000325,21]
[341205907,1730646651926,-156.12,0.0003272,2]
[341205908,1730646651935,-500.0,0.00032876,2]
[341205909,1730646651944,-932.27,0.00032877,2]
[341205910,1730646651954,-152.0,0.00032958,5]
[341205911,1730646651963,-500.0,0.00033,30]
[341205912,1730646651972,-500.0,0.00033,30]
[341205913,1730646651982,-500.0,0.00033,30]
[341205914,1730646651991,-776.00219841,0.00033,30]
[341205915,1730646652000,-500.0,0.00033,30]
[341205916,1730646652009,-500.0,0.00033,30]
[341205917,1730646652018,-500.0,0.00033,30]
[341205918,1730646652034,-500.0,0.00033,30]
[341205919,1730646652052,-361.0731386,0.00033,30]
[341205920,1730646652069,-500.0,0.00033,30]
[341205921,1730646652092,-500.0,0.00033,30]
[341205922,1730646652110,-500.0,0.00033,30]
[341205923,1730646652126,-500.0,0.00033,30]
[341205924,1730646652142,-207.48154249,0.00033,30]
[341205925,1730646652156,-500.0,0.00033,30]
[341205926,1730646652173,-500.0,0.00033,30]
[341205927,1730646652189,-500.0,0.00033,30]
[341205928,1730646652210,-5034.64,0.00033,2]
[341205929,1730646652222,-9902.78356916,0.00033,2]
[341205930,1730646652238,-550.0,0.00033,2]
[341205931,1730646652254,-150.0,0.00033,14]
[341205932,1730646652270,-839.0,0.00033,22]
[341205933,1730646652286,-218.0,0.00033,2]
[341205934,1730646652301,-150.0,0.00033037,7]
[341205935,1730646652314,-298.19,0.00033038,30]
[341205936,1730646652332,-29999.99,0.00033038,2]
[341205937,1730646652346,-9999.99,0.00033038,2]
[341205938,1730646652361,-6356.59,0.00033038,2]
[341205939,1730646652376,-1005.84257795,0.00033091,5]
[341205940,1730646652392,-576.41,0.00033097,2]
[341205941,1730646652406,-150.0,0.0003312,7]
[341205942,1730646652421,-150.0,0.0003312,7]
[341205943,1730646652436,-150.0,0.0003312,7]
[341205944,1730646652451,-155.30829635,0.0003312,7]
[341205945,1730646652465,-150.0,0.0003312,7]
[341205946,1730646652480,-150.0,0.0003312,7]
[341205947,1730646652495,-202.47,0.00033151,120]
[341205948,1730646652509,-150.0,0.00033455,7]
[341205949,1730646652524,-839.0,0.000335,22]
[341205950,1730646652540,-150.0,0.00033529,7]
[341205951,1730646652555,-568.19520488,0.00033541,60]
[341205952,1730646652569,-500.0,0.0003356,60]
[341205953,1730646652586,-500.0,0.0003356,60]
[341205954,1730646652601,-1026.174891,0.0003356,2]
[341205955,1730646652616,-150.0,0.00033733,7]
[341205956,1730646652630,-150.0,0.00033789,7]
[341205957,1730646652645,-228.0,0.0003381,2]
[341205958,1730646652660,-150.0,0.00033938,7]
[341205959,1730646652675,-151.0,0.00033963,2]
[341205960,1730646652689,-4022.39530164,0.00034,2]
[341205961,1730646652704,-839.0,0.00034,23]
[341205962,1730646652719,-150.0,0.00034124,7]
[341205963,1730646652814,-150.0,0.00034347,7]
[341205964,1730646652826,-150.0,0.00034347,7]
[341205965,1730646652835,-152.0,0.00034379,6]
[341205966,1730646652844,-150.0,0.00034458,7]
[341205967,1730646652854,-2000.0,0.00034464,2]
[341205968,1730646652863,-2000.0,0.00034464,2]
[341205969,1730646652873,-325.538866,0.000345,2]
[341205970,1730646652882,-839.0,0.000345,23]
[341205971,1730646652890,-451.338,0.000345,120]
[341205972,1730646652900,-2931.52757029,0.00034553,15]
[341205973,1730646652909,-2631.71987437,0.00034592,2]
[341205974,1730646652918,-1712.57687862,0.00034592,2]
[341205975,1730646652928,-121966.59006824,0.00034595,2]
[341205976,1730646652938,-18294.98851031,0.00034598,2]
[341205977,1730646652947,-351.39930534,0.00034598,2]
[341205978,1730646652957,-5708.58959541,0.00034598,2]
[341205979,1730646652966,-318.49171134,0.000346,2]
[341205980,1730646652975,-874.0,0.000346,20]
[341205981,1730646652985,-200.0,0.00034601,2]
[341205982,1730646652994,-200.0,0.00034601,2]
[341205983,1730646653003,-5349.24833569,0.00034602,2]
[341205984,1730646653012,-200.0,0.00034603,2]
[341205985,1730646653021,-1061.63903781,0.00034603,2]
[341205986,1730646653030,-318.49171134,0.00034608,2]
[341205987,1730646653039,-19028.6319847,0.00034611,2]
[341205988,1730646653048,-1075.49605845,0.00034616,2]
[341205989,1730646653057,-1075.49605845,0.00034617,2]
[341205990,1730646653067,-1474.76725411,0.00034618,2]
[341205991,1730646653077,-1645.73034026,0.00034619,2]
[341205992,1730646653086,-5708.58959541,0.00034619,2]
[341205993,1730646653095,-411.63724156,0.0003462,2]
[341205994,1730646653105,-5349.24833569,0.0003462,2]
[341205995,1730646653114,-351.39930534,0.00034621,2]
[341205996,1730646653123,-2349.05983748,0.00034629,2]
[341205997,1730646653132,-228.0,0.0003463,2]
[341205998,1730646653141,-1546.245632,0.0003463,2]
[341205999,1730646653150,-2744.24827662,0.00034631,2]
[341206000,1730646653160,-200.0,0.00034631,2]
[341206001,1730646653169,-39833.18735003,0.00034632,2]
[341206002,1730646653179,-2744.24827662,0.00034633,2]
[341206003,1730646653188,-5349.24833569,0.00034635,2]
[341206004,1730646653198,-47587.52984206,0.00034636,2]
[341206005,1730646653208,-18294.98851031,0.00034636,2]
[341206006,1730646653218,-1604.77450071,0.00034637,2]
[341206007,1730646653228,-200.0,0.00034637,2]
[341206008,1730646653237,-5058.81626787,0.00034638,2]
[341206009,1730646653247,-11949.95620501,0.0003464,2]
[341206010,1730646653258,-1712.57687862,0.00034641,2]
[341206011,1730646653270,-1546.245632,0.00034641,2]
[341206012,1730646653280,-11949.95620501,0.00034642,2]
[341206013,1730646653289,-1546.245632,0.00034643,2]
[341206014,1730646653299,-2631.71987437,0.00034647,2]
[341206015,1730646653309,-39833.18735003,0.00034647,2]
[341206016,1730646653319,-11949.95620501,0.00034649,2]
[341206017,1730646653331,-39833.18735003,0.0003465,2]
[341206018,1730646653341,-200.0,0.00034651,2]
[341206019,1730646653351,-200.0,0.00034651,2]
[341206020,1730646653360,-1546.245632,0.00034651,2]
[341206021,1730646653370,-3584.9868615,0.00034652,2]
[341206022,1730646653379,-200.0,0.00034652,2]
[341206023,1730646653389,-351.39930534,0.00034654,2]
[341206024,1730646653398,-200.0,0.00034656,2]
[341206025,1730646653407,-500.0,0.00034656,60]
[341206026,1730646653417,-622.12041336,0.00034656,60]
[341206027,1730646653428,-200.0,0.00034661,2]
[341206028,1730646653437,-513.77306359,0.00034662,2]